bitfinex/quotes_BTCUSD_20240911
["timestamp","ask_amount","ask_price","bid_price","bid_amount"]
[1726084731632,0.54273049,57799.0,57798.0,0.014882]
[1726084731902,0.23341749,57799.0,57798.0,0.3657047]
[1726084732120,0.02164203,57799.0,57798.0,0.20489393]
[1726084732303,0.09946129,57799.0,57798.0,0.19689393]
[1726084732814,0.09946129,57799.0,57798.0,0.18410323]
[1726084733026,0.09946129,57799.0,57798.0,0.17810323]
[1726084733452,0.09946129,57799.0,57798.0,0.18610323]
[1726084734309,0.09946129,57799.0,57798.0,0.01308723]
[1726084734761,0.27769609,57799.0,57798.0,0.01308723]
[1726084735000,0.51088769,57799.0,57798.0,0.01308723]
[1726084735215,0.85691369,57799.0,57798.0,0.01308723]
[1726084735436,1.2635993,57799.0,57798.0,0.01308723]
[1726084735847,1.2635993,57799.0,57798.0,0.008882]
[1726084736064,1.36918195,57799.0,57798.0,0.008882]
[1726084737646,1.71520795,57799.0,57798.0,0.008882]
[1726084737921,1.71520795,57799.0,57790.0,0.00164]
[1726084737922,0.519111,57791.0,57790.0,0.00164]
[1726084738141,1.15783459,57791.0,57790.0,0.00164]
[1726084738352,0.94139481,57791.0,57790.0,0.00164]
[1726084738573,0.91543771,57791.0,57790.0,0.00164]
[1726084739514,0.91543771,57791.0,57790.0,0.01564]
[1726084739515,1.23873459,57791.0,57790.0,0.01564]
[1726084739755,1.23873459,57791.0,57778.0,0.00164]
[1726084739756,0.865365,57779.0,57778.0,0.00164]
[1726084740002,0.83263474,57779.0,57778.0,0.00164]
[1726084740235,0.230371,57779.0,57778.0,0.00164]
[1726084740490,0.02062352,57779.0,57778.0,0.00164]
[1726084740705,0.02062352,57779.0,57778.0,0.17893987]
[1726084740915,0.02062352,57779.0,57778.0,0.52509187]
[1726084741379,0.05182938,57783.0,57778.0,0.06444306]
[1726084741611,0.02065957,57780.0,57779.0,0.173073]
[1726084741842,0.02066225,57783.0,57779.0,0.346146]
[1726084742077,0.05182938,57784.0,57782.0,0.173064]
[1726084742308,0.12957345,57788.0,57782.0,0.173064]
[1726084742309,0.02067849,57783.0,57782.0,0.173064]
[1726084742540,0.05182938,57786.0,57782.0,0.173064]
[1726084742541,0.02067849,57785.0,57782.0,0.173064]
[1726084742777,0.02067849,57785.0,57782.0,0.17728787]
[1726084743038,0.22487938,57787.0,57782.0,0.00417841]
[1726084743039,0.173061,57783.0,57782.0,0.00417841]
[1726084743277,0.19373949,57783.0,57782.0,0.00417841]
[1726084743524,0.02167849,57783.0,57782.0,0.519192]
[1726084743755,0.02170503,57783.0,57782.0,0.17728348]
[1726084743999,0.001,57783.0,57782.0,0.17728348]
[1726084744223,0.001,57783.0,57782.0,0.52341148]
[1726084744674,0.02173452,57783.0,57782.0,0.52341148]
[1726084744907,0.0607,57789.0,57782.0,0.09133753]
[1726084745153,0.02075196,57788.0,57786.0,0.173051]
[1726084745392,0.02075196,57787.0,57782.0,0.00721948]
[1726084745621,0.02075196,57787.0,57778.0,0.00164]
[1726084745622,0.16487887,57786.0,57778.0,0.00164]
[1726084745844,0.22488738,57784.0,57783.0,0.00321948]
[1726084746080,0.22488738,57784.0,57782.0,0.004]
[1726084746081,0.519183,57783.0,57782.0,0.004]
[1726084746320,0.08207124,57784.0,57778.0,0.00164]
[1726084746321,0.173068,57781.0,57778.0,0.00164]
[1726084746548,0.19382196,57780.0,57778.0,0.00164]
[1726084746831,0.02075196,57779.0,57778.0,0.00164]
[1726084747061,0.0517665,57784.0,57778.0,0.00164]
[1726084747062,0.2248155,57787.0,57781.0,0.346129]
[1726084747313,0.346092,57789.0,57786.0,0.346098]
[1726084747314,0.0517665,57789.0,57786.0,0.346098]
[1726084747556,0.00082,57791.0,57790.0,0.17304]
[1726084747989,0.02161595,57791.0,57790.0,0.51912]
[1726084748199,0.02161595,57791.0,57790.0,0.8652]
[1726084748645,0.02161595,57791.0,57788.0,0.062]
[1726084748876,0.02079595,57790.0,57787.0,0.173047]
[1726084749084,0.02079595,57789.0,57786.0,0.346104]
[1726084749299,0.173858,57791.0,57787.0,0.173048]
[1726084749510,0.173858,57791.0,57788.0,0.173044]
[1726084749511,0.00182,57791.0,57788.0,0.173044]
[1726084749739,0.02083283,57790.0,57789.0,0.173043]
[1726084749958,0.02083283,57790.0,57787.0,0.519144]
[1726084750242,0.001,57790.0,57787.0,0.346098]
[1726084750479,0.02085831,57789.0,57788.0,0.519136]
[1726084750739,0.001,57790.0,57789.0,1.05185554]
[1726084750959,0.001,57790.0,57789.0,1.39794154]
[1726084751173,0.001,57790.0,57789.0,1.46084154]
[1726084751404,0.001,57790.0,57789.0,1.81112216]
[1726084751621,0.00082,57791.0,57789.0,1.81112216]
[1726084751622,0.00082,57791.0,57790.0,1.55736]
[1726084751868,0.00082,57791.0,57790.0,1.34998]
[1726084752083,0.00182,57791.0,57790.0,1.35415011]
[1726084752300,0.00082,57791.0,57790.0,1.35415011]
[1726084752744,0.00082,57791.0,57790.0,1.35315011]
[1726084752968,0.00082,57791.0,57790.0,1.52931966]
[1726084753181,0.00182,57791.0,57790.0,1.54231966]
[1726084753399,0.00282,57791.0,57790.0,1.54831966]
[1726084754301,0.00282,57791.0,57790.0,0.02317011]
[1726084755228,0.00082,57791.0,57790.0,0.00417011]
[1726084755445,0.174857,57791.0,57790.0,0.03217011]
[1726084755692,0.6018499,57791.0,57790.0,0.028]
[1726084755907,1.83984966,57791.0,57790.0,0.014]
[1726084756159,1.83984966,57791.0,57768.0,0.063]
[1726084756160,0.173073,57779.0,57768.0,0.063]
[1726084756362,0.19376966,57779.0,57775.0,0.173085]
[1726084756603,0.19376966,57779.0,57771.0,0.346192]
[1726084756844,0.24532122,57779.0,57771.0,0.346192]
[1726084757242,0.24532122,57779.0,57774.0,0.173086]
[1726084757243,0.24531424,57779.0,57774.0,0.173086]
[1726084757246,0.24531424,57779.0,57775.0,0.0753]
[1726084757247,0.02048096,57779.0,57775.0,0.0753]
[1726084757464,0.02048096,57779.0,57778.0,0.240316]
[1726084757691,0.00432677,57783.0,57778.0,0.00579618]
[1726084757966,0.02034299,57782.0,57778.0,0.0475531]
[1726084758211,0.05176028,57788.0,57786.0,0.173051]
[1726084758438,0.173047,57788.0,57781.0,0.346134]
[1726084758683,0.020554,57787.0,57784.0,0.173057]
[1726084758910,0.346896,57791.0,57784.0,0.173057]
[1726084758911,0.00082,57791.0,57785.0,0.0633]
[1726084759158,0.00082,57791.0,57790.0,0.17304]
[1726084759377,0.00082,57791.0,57790.0,0.8652]
[1726084759611,0.02147483,57791.0,57790.0,0.8652]
[1726084759843,0.02147483,57791.0,57790.0,0.52327618]
[1726084760076,0.02147483,57791.0,57790.0,0.17719618]
[1726084760317,0.02147483,57791.0,57790.0,0.52327618]
[1726084760552,0.02247483,57791.0,57790.0,0.18119618]
[1726084760784,0.02347483,57791.0,57790.0,0.18819618]
[1726084761298,0.02347483,57791.0,57790.0,0.01515618]
[1726084761528,0.54258583,57791.0,57790.0,0.01515618]
[1726084761770,0.19651183,57791.0,57790.0,0.011]
[1726084762052,0.19651183,57791.0,57785.0,0.173053]
[1726084762053,0.173045,57789.0,57785.0,0.173053]
[1726084762326,0.346103,57787.0,57779.0,0.0629]
[1726084762593,0.22479859,57787.0,57786.0,0.00415618]
[1726084762838,0.570928,57787.0,57786.0,0.00415618]
[1726084763073,0.570928,57787.0,57782.0,0.00164]
[1726084763074,0.173052,57786.0,57782.0,0.00164]
[1726084763305,0.11247836,57788.0,57785.0,0.009]
[1726084763546,0.02057124,57787.0,57785.0,0.009]
[1726084763763,0.02057124,57786.0,57785.0,0.173054]
[1726084763992,0.173044,57789.0,57786.0,0.00417382]
[1726084763993,0.174044,57789.0,57786.0,0.00417382]
[1726084764261,0.02059872,57788.0,57787.0,1.37426578]
[1726084764533,0.001,57789.0,57787.0,1.37426578]
[1726084764534,0.001,57789.0,57788.0,0.71977854]
[1726084764755,0.001,57789.0,57788.0,1.41196254]
[1726084765219,0.001,57789.0,57788.0,1.41613973]
[1726084765465,0.001,57789.0,57788.0,0.17722319]
[1726084765466,0.02068545,57789.0,57788.0,0.17722319]
[1726084765747,0.02068545,57789.0,57788.0,0.00417719]
[1726084766005,0.02068545,57789.0,57788.0,0.009]
[1726084766006,0.19372845,57789.0,57788.0,0.009]
[1726084766248,0.24542421,57789.0,57788.0,0.0131614]
[1726084766475,0.24642421,57789.0,57788.0,0.0131614]
[1726084766693,0.24642421,57789.0,57788.0,0.009]
[1726084766920,0.24642421,57789.0,57788.0,0.0131614]
[1726084767831,0.54073185,57789.0,57788.0,0.0131614]
[1726084768058,1.28353887,57789.0,57788.0,0.0131614]
[1726084768296,1.68674305,57789.0,57788.0,0.0131614]
[1726084768553,2.08582905,57789.0,57788.0,0.0131614]
[1726084768790,1.211427,57783.0,57782.0,0.00164]
[1726084769031,1.44455554,57783.0,57782.0,0.00164]
[1726084769264,1.54455554,57783.0,57782.0,0.00164]
[1726084769539,2.08691629,57783.0,57782.0,0.00164]
[1726084769761,2.43701419,57783.0,57782.0,0.00164]
[1726084770017,2.43901419,57783.0,57782.0,0.00164]
[1726084770272,2.10089219,57783.0,57782.0,0.00264]
[1726084770508,1.37067229,57783.0,57782.0,0.00264]
[1726084770725,1.37067229,57783.0,57782.0,0.00164]
[1726084770959,0.519219,57779.0,57778.0,0.00146609]
[1726084771207,0.07767651,57779.0,57778.0,0.17454209]
[1726084771449,0.05177699,57780.0,57778.0,0.00146609]
[1726084771683,0.25074451,57781.0,57778.0,0.00567083]
[1726084771684,0.05177699,57781.0,57778.0,0.00567083]
[1726084771917,0.05177699,57781.0,57778.0,0.00146609]
[1726084772133,0.05177699,57782.0,57779.0,0.00420474]
[1726084772410,0.25073451,57784.0,57783.0,0.173061]
[1726084772411,0.05177699,57784.0,57783.0,0.173061]
[1726084772666,0.05177699,57785.0,57784.0,0.169058]
[1726084772911,0.05177699,57785.0,57778.0,0.0424202]
[1726084773151,0.05177699,57785.0,57784.0,0.00420474]
[1726084773411,0.05177699,57786.0,57785.0,0.519165]
[1726084773673,0.05177699,57790.0,57787.0,0.173049]
[1726084773887,0.00082,57791.0,57789.0,0.173042]
[1726084774358,0.173857,57791.0,57790.0,0.00399647]
[1726084774590,0.39867099,57791.0,57784.0,0.173057]
[1726084774853,0.34612,57784.0,57779.0,0.0646]
[1726084775120,0.05179496,57784.0,57776.0,0.346162]
[1726084775341,0.05179496,57784.0,57769.0,0.001638]
[1726084775342,0.57101396,57779.0,57769.0,0.001638]
[1726084775573,0.57101396,57779.0,57778.0,0.00146609]
[1726084775574,0.94304151,57779.0,57778.0,0.00146609]
[1726084775821,1.65268207,57779.0,57778.0,0.00146609]
[1726084776316,1.65274112,57779.0,57778.0,0.00146609]
[1726084776539,1.30659512,57779.0,57778.0,0.00146609]
[1726084776765,0.44245266,57779.0,57778.0,0.00146609]
[1726084776990,0.10683989,57779.0,57778.0,0.00146609]
[1726084777267,0.10683989,57779.0,57778.0,0.5554568]
[1726084777268,0.02914072,57779.0,57778.0,0.5554568]
[1726084777536,0.03714072,57779.0,57778.0,1.31567294]
[1726084777767,0.03714072,57779.0,57778.0,0.65909409]
[1726084777993,0.03714072,57779.0,57778.0,1.00524609]
[1726084778229,0.02914072,57779.0,57778.0,1.00524609]
[1726084778465,0.02714072,57779.0,57778.0,0.00146609]
[1726084779137,0.03314072,57779.0,57778.0,0.00246609]
[1726084779591,0.20021372,57779.0,57778.0,0.00146609]
[1726084779820,0.20421372,57779.0,57778.0,0.00146609]
[1726084780056,0.54635972,57779.0,57778.0,0.00146609]
[1726084780303,0.54635972,57779.0,57778.0,0.87765823]
[1726084780304,0.02714072,57779.0,57778.0,0.87765823]
[1726084780544,0.02814072,57779.0,57778.0,1.22381023]
[1726084780800,0.02814072,57779.0,57778.0,0.95214052]
[1726084781042,0.02814072,57779.0,57778.0,1.39914696]
[1726084781520,0.02914072,57779.0,57778.0,1.01964052]
[1726084781761,0.02814072,57779.0,57778.0,1.01964052]
[1726084781995,0.03314072,57779.0,57778.0,1.01964052]
[1726084782210,0.006,57779.0,57778.0,1.01964052]
[1726084782458,0.001,57779.0,57778.0,0.67348852]
[1726084782964,0.001,57779.0,57778.0,0.16426052]
[1726084783195,0.001,57779.0,57778.0,0.32733652]
[1726084783419,0.22485943,57783.0,57778.0,0.32333652]
[1726084783643,0.22485943,57783.0,57779.0,0.346146]
[1726084783644,0.05179743,57783.0,57779.0,0.346146]
[1726084783873,1.211511,57779.0,57778.0,0.01546052]
[1726084784086,1.08435806,57779.0,57778.0,0.00746609]
[1726084784318,1.18435806,57779.0,57778.0,0.00746609]
[1726084784536,1.18435806,57779.0,57778.0,0.01046609]
[1726084784773,1.18435806,57779.0,57778.0,0.00146609]
[1726084785251,1.18435806,57779.0,57778.0,0.00246609]
[1726084785483,1.21149909,57779.0,57778.0,0.00246609]
[1726084785699,1.98866407,57779.0,57778.0,0.00146609]
[1726084785909,1.98866407,57779.0,57778.0,0.00080006]
[1726084785910,1.99466407,57779.0,57778.0,0.00080006]
[1726084786359,2.14256053,57779.0,57778.0,0.00089101]
[1726084786565,0.5193,57770.0,57769.0,0.001638]
[1726084786777,0.86585118,57770.0,57769.0,0.001638]
[1726084786999,0.7363086,57770.0,57769.0,0.001638]
[1726084787226,1.45585186,57770.0,57769.0,0.001638]
[1726084787449,1.58539444,57770.0,57769.0,0.001638]
[1726084787963,1.45585186,57770.0,57769.0,0.001638]
[1726084788189,1.55585186,57770.0,57769.0,0.001638]
[1726084788425,1.61615186,57770.0,57769.0,0.001638]
[1726084788653,1.20965186,57770.0,57769.0,0.001638]
[1726084788879,1.33912527,57770.0,57769.0,0.001638]
[1726084789140,1.68532527,57770.0,57769.0,0.006638]
[1726084789381,1.55585186,57770.0,57769.0,0.006638]
[1726084789582,1.55585186,57770.0,57769.0,0.001638]
[1726084789793,1.55885186,57770.0,57769.0,0.001638]
[1726084790012,1.21265186,57770.0,57769.0,0.001638]
[1726084790233,1.33909115,57770.0,57769.0,0.001638]
[1726084790445,0.02814326,57770.0,57769.0,0.001638]
[1726084790667,0.25300224,57770.0,57769.0,0.001638]
[1726084790900,0.89364326,57770.0,57769.0,0.00567383]
[1726084791123,1.11063333,57770.0,57769.0,0.001638]
[1726084791349,1.21313579,57770.0,57769.0,0.001638]
[1726084791580,1.22313579,57770.0,57769.0,0.002638]
[1726084791840,0.35763579,57770.0,57769.0,0.002638]
[1726084792070,0.34763579,57770.0,57769.0,0.001638]
[1726084792275,0.346193,57772.0,57769.0,0.00567383]
[1726084792489,0.22784545,57770.0,57769.0,0.00567383]
[1726084792710,0.92724545,57770.0,57769.0,0.00567383]
[1726084792997,0.57804545,57770.0,57769.0,0.001638]
[1726084793215,1.79050959,57770.0,57769.0,0.005638]
[1726084793884,1.51484545,57770.0,57769.0,0.005638]
[1726084794119,1.01824545,57770.0,57769.0,0.005638]
[1726084794320,0.67304545,57770.0,57769.0,0.005638]
[1726084794524,1.36644545,57770.0,57769.0,0.001638]
[1726084794736,1.01824545,57770.0,57769.0,0.001638]
[1726084794966,0.68304545,57770.0,57769.0,0.002638]
[1726084795447,0.68304545,57770.0,57769.0,0.001638]
[1726084795448,1.01824545,57770.0,57769.0,0.001638]
[1726084795662,1.34884539,57770.0,57769.0,0.002638]
[1726084795888,1.99417703,57770.0,57769.0,0.002638]
[1726084796101,1.99462313,57770.0,57769.0,0.001638]
[1726084796551,2.35082313,57770.0,57769.0,0.002638]
[1726084797014,2.36303901,57770.0,57769.0,0.002638]
[1726084797241,1.272736,57754.0,57746.0,0.52366494]
[1726084797462,1.372736,57754.0,57746.0,0.52366494]
[1726084797674,1.372736,57754.0,57746.0,0.0037658]
[1726084797898,1.40188872,57754.0,57746.0,0.0037658]
[1726084798137,1.86118472,57754.0,57746.0,0.0037658]
[1726084798361,2.26196934,57754.0,57746.0,0.0037658]
[1726084798581,2.34496934,57754.0,57746.0,0.0037658]
[1726084798803,2.35196934,57754.0,57746.0,0.0037658]
[1726084799052,2.35896934,57754.0,57746.0,0.0037658]
[1726084799503,2.35196934,57754.0,57746.0,0.0037658]
[1726084799728,2.35332314,57747.0,57746.0,0.0037658]
[1726084799968,2.35332314,57747.0,57732.0,0.00164]
[1726084799969,0.03,57733.0,57732.0,0.00164]
[1726084800217,1.17171914,57733.0,57732.0,0.00164]
[1726084800462,0.996055,57733.0,57732.0,0.00164]
[1726084800728,1.02321851,57733.0,57732.0,0.00164]
[1726084800921,0.99321851,57733.0,57732.0,0.00164]
[1726084801459,0.99321851,57733.0,57732.0,0.348068]
[1726084801460,0.004,57733.0,57732.0,0.348068]
[1726084801685,0.0766,57752.0,57736.0,0.346399]
[1726084801931,0.173156,57752.0,57738.0,0.0714]
[1726084802162,0.3463,57754.0,57740.0,0.0622]
[1726084802395,0.01184743,57762.0,57747.0,0.346335]
[1726084802615,0.346182,57773.0,57742.0,0.27566414]
[1726084802616,0.166,57777.0,57762.0,0.0626]
[1726084802840,0.173164,57749.0,57747.0,0.0626]
[1726084803074,0.076,57762.0,57748.0,0.51989914]
[1726084803314,0.346213,57768.0,57747.0,0.0626]
[1726084803533,0.00432864,57768.0,57754.0,0.346295]
[1726084803767,0.00432864,57768.0,57754.0,0.173146]
[1726084803768,0.173134,57759.0,57754.0,0.173146]
[1726084804005,0.00432894,57758.0,57749.0,0.346326]
[1726084804244,0.00432894,57758.0,57747.0,0.0626]
[1726084804245,0.346273,57758.0,57751.0,0.173156]
[1726084804471,0.446283,57757.0,57748.0,0.346331]
[1726084804697,0.446283,57757.0,57747.0,0.0626]
[1726084804937,0.173154,57752.0,57747.0,0.0626]
[1726084805155,0.173158,57751.0,57748.0,0.0765]
[1726084805377,0.173151,57753.0,57748.0,0.249663]
[1726084805607,0.173146,57755.0,57748.0,0.0765]
[1726084805850,0.1,57757.0,57748.0,0.41802434]
[1726084805851,0.001,57757.0,57748.0,0.41802434]
[1726084806114,0.173163,57749.0,57748.0,0.0765]
[1726084806338,0.51957,57740.0,57739.0,0.0647]
[1726084806571,0.05160809,57750.0,57737.0,0.0797]
[1726084806811,0.06160809,57757.0,57741.0,0.0797]
[1726084807057,0.01,57757.0,57751.0,0.346312]
[1726084807305,0.109,57757.0,57749.0,0.346325]
[1726084807558,0.004,57753.0,57752.0,0.173154]
[1726084807785,0.004,57753.0,57752.0,0.519462]
[1726084808013,0.009,57755.0,57754.0,0.519444]
[1726084808258,0.0001,57762.0,57761.0,0.865635]
[1726084808578,0.0001,57762.0,57761.0,0.519381]
[1726084808814,0.0001,57762.0,57756.0,0.346281]
[1726084808815,0.0001,57762.0,57755.0,0.0765]
[1726084809076,0.173141,57757.0,57755.0,0.0765]
[1726084809333,0.173142,57756.0,57755.0,0.0755]
[1726084809549,0.173142,57756.0,57754.0,0.0601]
[1726084809550,0.519435,57755.0,57754.0,0.0601]
[1726084810015,0.346273,57758.0,57754.0,0.0601]
[1726084810241,0.346275,57758.0,57754.0,0.0601]
[1726084810470,0.346275,57758.0,57744.0,0.235675]
[1726084810471,0.346302,57753.0,57744.0,0.235675]
[1726084810721,0.346317,57751.0,57745.0,0.173173]
[1726084810955,0.346317,57751.0,57744.0,0.0625]
[1726084810956,0.519498,57748.0,57744.0,0.0625]
[1726084811209,0.173166,57748.0,57744.0,0.0625]
[1726084811447,0.02715228,57748.0,57746.0,0.17317]
[1726084811678,0.02715228,57748.0,57745.0,0.346347]
[1726084811894,0.02715228,57748.0,57747.0,0.00764]
[1726084812128,0.02715228,57748.0,57747.0,0.00164]
[1726084812387,0.001,57748.0,57747.0,0.08534]
[1726084812617,0.001,57748.0,57747.0,0.258509]
[1726084812856,0.002,57748.0,57747.0,0.263509]
[1726084813312,0.002,57748.0,57747.0,0.01464]
[1726084813313,0.86783,57748.0,57747.0,0.01464]
[1726084813541,1.78416797,57748.0,57747.0,0.01464]
[1726084813776,2.1517236,57748.0,57747.0,0.01464]
[1726084814010,2.1537236,57748.0,57747.0,0.01464]
[1726084814233,0.173211,57733.0,57731.0,0.1374]
[1726084814498,0.173211,57733.0,57728.0,0.0037658]
[1726084814499,0.519633,57733.0,57728.0,0.0037658]
[1726084815007,0.173211,57733.0,57728.0,0.1769908]
[1726084815248,0.17321,57734.0,57728.0,0.3502148]
[1726084815476,0.02715941,57735.0,57728.0,0.0037658]
[1726084815696,0.007,57733.0,57728.0,0.6966638]
[1726084815960,0.007,57733.0,57729.0,0.173222]
[1726084816180,0.173209,57734.0,57732.0,0.00560989]
[1726084816412,0.173209,57734.0,57732.0,0.00560979]
[1726084816914,0.173211,57733.0,57732.0,0.00560979]
[1726084817177,0.02715941,57735.0,57732.0,0.00560979]
[1726084817405,0.20036741,57735.0,57732.0,0.00164]
[1726084817629,0.20036741,57735.0,57733.0,0.00397017]
[1726084817870,0.173211,57733.0,57732.0,0.00164]
[1726084818117,0.174211,57733.0,57732.0,0.00164]
[1726084818344,0.002,57733.0,57732.0,0.174854]
[1726084818602,0.002,57733.0,57732.0,0.00164]
[1726084818842,0.868055,57733.0,57732.0,0.00164]
[1726084819072,1.313477,57733.0,57732.0,0.00164]
[1726084819539,0.866085,57731.0,57730.0,0.00164]
[1726084819772,0.619651,57731.0,57730.0,0.00164]
[1726084820034,0.1,57731.0,57730.0,0.00164]
[1726084820260,0.001,57733.0,57732.0,0.602842]
[1726084820504,0.02815941,57735.0,57734.0,0.173208]
[1726084820732,0.02715941,57735.0,57734.0,0.510624]
[1726084820959,0.02715941,57735.0,57734.0,0.163208]
[1726084821207,0.02715941,57735.0,57734.0,0.519624]
[1726084821426,0.02715941,57735.0,57734.0,0.173208]
[1726084821663,0.001,57733.0,57732.0,0.329414]
[1726084821897,0.001,57733.0,57732.0,0.675842]
[1726084822135,0.02815941,57735.0,57732.0,0.1492]
[1726084822367,0.175206,57735.0,57734.0,0.007]
[1726084822597,0.002,57735.0,57734.0,0.007]
[1726084823060,0.175205,57735.0,57734.0,0.007]
[1726084823517,0.87235541,57735.0,57734.0,0.007]
[1726084823992,0.868025,57735.0,57734.0,0.01101524]
[1726084823994,0.867025,57735.0,57734.0,0.007]
[1726084824221,0.001,57733.0,57730.0,0.00164]
[1726084824441,0.001,57733.0,57732.0,0.004]
[1726084824667,0.174211,57733.0,57732.0,0.004]
[1726084824903,0.007,57735.0,57730.0,0.174859]
[1726084825148,0.003,57735.0,57732.0,0.00400675]
[1726084825366,0.00433058,57734.0,57730.0,0.00164]
[1726084825593,0.173217,57731.0,57730.0,0.00164]
[1726084825850,0.92341621,57731.0,57730.0,0.00164]
[1726084826088,1.33985021,57731.0,57730.0,0.00164]
[1726084826324,1.44728643,57731.0,57730.0,0.00164]
[1726084826563,1.36985021,57731.0,57730.0,0.00164]
[1726084826791,1.33968395,57731.0,57730.0,0.00164]
[1726084827219,1.39126133,57731.0,57730.0,0.00164]
[1726084827490,1.33968395,57731.0,57730.0,0.00364]
[1726084827882,1.36968395,57731.0,57730.0,0.00364]
[1726084827883,1.48968395,57731.0,57730.0,0.00364]
[1726084828077,2.04813632,57731.0,57730.0,0.00164]
[1726084828289,2.04623705,57731.0,57730.0,0.00164]
[1726084828503,2.16245429,57731.0,57730.0,0.00164]
[1726084828699,2.15045429,57731.0,57730.0,0.00164]
[1726084829059,2.03423705,57731.0,57730.0,0.00164]
[1726084829244,2.04833705,57731.0,57730.0,0.00164]
[1726084829672,2.04833705,57731.0,57719.0,0.00164]
[1726084829673,1.559115,57725.0,57719.0,0.00164]
[1726084829927,2.58465083,57725.0,57719.0,0.00164]
[1726084830130,0.981235,57721.0,57719.0,0.00164]
[1726084830297,2.33574431,57721.0,57719.0,0.00164]
[1726084830516,2.68223831,57721.0,57719.0,0.00164]
[1726084830844,2.4727361,57721.0,57719.0,0.00164]
[1726084831054,2.52724805,57721.0,57719.0,0.00164]
[1726084831315,2.4727361,57721.0,57719.0,0.00164]
[1726084831547,2.4727361,57721.0,57715.0,0.00164]
[1726084831548,2.12977473,57716.0,57715.0,0.00164]
[1726084831752,2.44189383,57716.0,57715.0,0.00164]
[1726084832390,2.54926825,57716.0,57715.0,0.00164]
[1726084832611,2.65107227,57716.0,57715.0,0.00164]
[1726084832794,2.55009383,57716.0,57715.0,0.00164]
[1726084833021,2.95304674,57716.0,57715.0,0.00164]
[1726084833241,3.10783619,57716.0,57715.0,0.00164]
[1726084833448,3.10776568,57716.0,57715.0,0.00164]
[1726084833665,3.289554,57716.0,57715.0,0.00164]
[1726084833913,2.88663794,57716.0,57715.0,0.00164]
[1726084834213,2.88663794,57716.0,57694.0,0.0037658]
[1726084834214,0.173304,57702.0,57694.0,0.0037658]
[1726084834446,2.40119432,57702.0,57694.0,0.0037658]
[1726084834679,2.74780232,57702.0,57694.0,0.0037658]
[1726084834914,2.40119432,57702.0,57694.0,0.0037658]
[1726084835368,2.42837515,57702.0,57694.0,0.0037658]
[1726084835571,2.55715864,57702.0,57694.0,0.0037658]
[1726084835786,2.44237515,57702.0,57694.0,0.0037658]
[1726084836220,0.56109283,57702.0,57695.0,0.0657]
[1726084836467,0.90770083,57702.0,57695.0,0.0657]
[1726084836692,1.25430883,57702.0,57695.0,0.0657]
[1726084836896,0.56109283,57702.0,57695.0,0.0657]
[1726084837130,0.54709283,57702.0,57695.0,0.0657]
[1726084837339,0.04018083,57702.0,57696.0,0.173319]
[1726084837547,0.04018083,57702.0,57695.0,0.0657]
[1726084837548,0.04018083,57702.0,57697.0,0.173317]
[1726084837771,0.02718083,57702.0,57695.0,0.0657]
[1726084838023,0.02718083,57702.0,57701.0,0.00751052]
[1726084838259,0.04118083,57702.0,57701.0,0.0032903]
[1726084838488,0.04118083,57702.0,57701.0,0.00748524]
[1726084838694,0.02718083,57702.0,57701.0,0.0032903]
[1726084838908,0.02718083,57702.0,57701.0,0.00748524]
[1726084839136,0.02718083,57702.0,57701.0,0.0032903]
[1726084839407,0.02718083,57702.0,57701.0,0.00748524]
[1726084839640,0.20481802,57702.0,57701.0,0.0032903]
[1726084839841,0.54709283,57702.0,57701.0,0.0032903]
[1726084840474,0.54709283,57702.0,57694.0,0.0037658]
[1726084840475,0.12718083,57702.0,57694.0,0.0037658]
[1726084840690,0.173323,57696.0,57694.0,0.0037658]
[1726084840909,0.173318,57698.0,57695.0,0.00415697]
[1726084841144,0.101,57702.0,57694.0,0.0037658]
[1726084841367,0.173315,57699.0,57694.0,0.0037658]
[1726084841602,0.1271782,57698.0,57695.0,0.00415697]
[1726084842019,0.004,57696.0,57695.0,0.00415697]
[1726084842477,0.004,57696.0,57694.0,0.0037658]
[1726084842948,0.004,57696.0,57695.0,0.66443197]
[1726084843166,0.004,57696.0,57695.0,1.12272061]
[1726084843373,0.346579,57707.0,57701.0,0.001642]
[1726084843374,0.273299,57704.0,57701.0,0.001642]
[1726084843609,0.1,57704.0,57701.0,0.001642]
[1726084844048,0.1,57704.0,57702.0,0.00415697]
[1726084844482,0.1,57704.0,57701.0,0.001642]
[1726084844711,0.173284,57709.0,57704.0,0.0831]
[1726084844951,0.346582,57707.0,57704.0,0.0821]
[1726084845183,0.17329,57707.0,57705.0,0.0041432]
[1726084845395,0.02717357,57708.0,57704.0,0.0821]
[1726084845605,0.02717357,57708.0,57706.0,0.45828864]
[1726084845812,0.02717357,57708.0,57705.0,0.06944362]
[1726084846023,0.02717357,57708.0,57706.0,0.80487264]
[1726084846256,0.02717357,57708.0,57707.0,0.173289]
[1726084847009,0.02717357,57708.0,57707.0,0.17743262]
[1726084847565,0.02817357,57708.0,57707.0,0.17843262]
[1726084848016,0.02817357,57708.0,57707.0,0.00414362]
[1726084848017,0.02717357,57708.0,57707.0,0.00414362]
[1726084848233,0.02817357,57708.0,57707.0,0.00514362]
[1726084848475,0.02817357,57708.0,57707.0,0.001]
[1726084848701,0.02817357,57708.0,57707.0,0.00514362]
[1726084848913,0.02827357,57708.0,57707.0,0.001]
[1726084849124,0.02827357,57708.0,57707.0,0.00514362]
[1726084849362,0.02827357,57708.0,57707.0,0.001]
[1726084849619,0.02727357,57708.0,57707.0,0.00414362]
[1726084849835,0.02727357,57708.0,57705.0,0.0653]
[1726084850051,0.02727357,57708.0,57707.0,0.00414362]
[1726084850268,0.02727357,57708.0,57705.0,0.238592]
[1726084850485,0.02727357,57708.0,57707.0,0.00414362]
[1726084850728,0.02727357,57708.0,57707.0,0.173289]
[1726084850954,0.02727357,57708.0,57707.0,0.00414362]
[1726084851629,0.02727357,57708.0,57705.0,0.0653]
[1726084851858,0.02727357,57708.0,57707.0,0.00414362]
[1726084852000,0.02727357,57708.0,57705.0,0.0653]
[1726084852224,0.0001,57708.0,57707.0,0.00414362]
[1726084852427,0.0001,57708.0,57705.0,0.0653]
[1726084852640,0.0001,57708.0,57707.0,0.00414362]
[1726084852812,0.0011,57708.0,57707.0,0.006]